Cogmind - Beta 13 *** ADVENTURER MODE // 2024.07.22 @ 08:09:29 Player: Jefffff Result: Destroyed by G-34 Mercenary with Small Laser Performance ------------- Evolutions (1) 500 Regions Visited (4) 800 Robots Destroyed (118) 590 Value Destroyed (2655) 2655 Prototype IDs (4) 80 Alien Tech Used (0) 0 Bonus (10) 10 TOTAL SCORE: 4635 Bonus ------- Follower Combat Kills 25 Friendly Fire -15 Cogmind --------- Core Integrity 0/400 Matter 300/300 Energy 123/125 System Corruption 12% Temperature Cool (6) Movement Rolling (130) Ox2 Location -9/Storage Parts ------- > --- POWER (1) -------- Light Ion Engine > --- PROPULSION (2) --- Compact Wheel Compact Wheel > --- UTILITY (4) ------ Huge Storage Unit Transport Network Coupler Improved Weapon Shielding Improved Weapon Shielding > --- WEAPON (2) ------- Plasma Cutter Heavy Hammer > --- INVENTORY (25) --- Improved Ion Engine Improved Aluminum Leg Compact Wheel Cooling System Cargo Storage Unit Medium Matter Pod (100) Visual Processing Unit Melee Analysis Suite Melee Analysis Suite Melee Analysis Suite ECM Suite Hacking Suite Hacking Suite Hacking Suite Hacking Suite Thief Drone Bay (3/3) Spread Laser Advanced Beam Cannon Heavy Assault Rifle Datajack Mining Laser Maul Peak State ------------ > --- POWER ------------ Light Nuclear Core > --- PROPULSION ------- Carbon-fiber Leg Carbon-fiber Leg > --- UTILITY ---------- Huge Storage Unit Transport Network Coupler Improved Weapon Shielding Medium Armor Plating > --- WEAPON ----------- Advanced Beam Cannon Heavy Hammer > --- INVENTORY -------- Improved Aluminum Leg Cooling System Cargo Storage Unit Medium Matter Pod Visual Processing Unit Melee Analysis Suite Melee Analysis Suite Melee Analysis Suite ECM Suite Improved Weapon Shielding Hacking Suite Hacking Suite Hacking Suite Hacking Suite Thief Drone Bay Spread Laser Heavy Assault Rifle Datajack Mining Laser Plasma Cutter Maul [Rating: 26] Favorites ----------- Power Improved Ion Engine Engine Improved Ion Engine Power Core Light Nuclear Core Propulsion Light Treads Treads Light Treads Leg Carbon-fiber Leg Wheel Compact Wheel Utility Huge Storage Unit Device Seismic Detector Storage Huge Storage Unit Processor Transport Network Coupler Protection Improved Weapon Shielding Weapon Maul Energy Gun Beam Rifle Energy Cannon Advanced Beam Cannon Special Weapon Plasma Cutter Impact Weapon Maul Build | -11 -10 -10 -9 -9 ------- Run | Yrd Mat Min Mat Sto Slots Evolved 2 | . . . 2 . Power . | . . . . . Propulsion . | . . . . . Utility 2 | . . . 2 . Weapon . | . . . . . Parts Attached 76 | 7 11 10 28 20 Power 13 | 2 2 3 3 3 Engine 11 | 2 1 3 3 2 Core 2 | . 1 . . 1 Reactor . | . . . . . Propulsion 25 | 2 2 2 8 11 Treads 15 | . . 2 8 5 Leg 4 | . . . . 4 Wheel 6 | 2 2 . . 2 Hover . | . . . . . Flight . | . . . . . Utility 26 | 1 5 3 13 4 Device 1 | . . 1 . . Storage 6 | 1 4 . 1 . Processor 3 | . 1 . 1 1 Hackware . | . . . . . Protection 16 | . . 2 11 3 Artifact . | . . . . . Weapon 12 | 2 2 2 4 2 Energy Gun 4 | 2 1 1 . . Energy Cannon 3 | . . . 3 . Ballistic Gun . | . . . . . Ballistic Cannon . | . . . . . Launcher . | . . . . . Special Weapon 1 | . . . . 1 Impact Weapon 4 | . 1 1 1 1 Slashing Weapon . | . . . . . Piercing Weapon . | . . . . . Special Melee Weapon . | . . . . . Unidentified Prototypes 1 | . . . 1 . Corrupted Parts 4 | . . 1 3 . System Corruption 16 | . . 4 12 . Parts Lost 15 | . . 5 2 8 Power 3 | . . 1 . 2 Propulsion 3 | . . 1 . 2 Utility 8 | . . 2 2 4 Weapon 1 | . . 1 . . Highest Loss Streak 3 | . . 3 1 3 To Critical Strikes . | . . . . . Average Slot Usage (%) 98 | . 96 98 100 97 Engine 9 | . 6 13 11 6 Core 2 | . 7 . . 4 Treads 16 | . . 21 22 10 Leg 2 | . . . . 9 Wheel 4 | . 27 6 . . Storage 11 | . 14 14 11 11 Processor 9 | . 11 . 9 15 Protection 16 | . . 10 23 17 Energy Gun 6 | . 26 13 . . Energy Cannon 7 | . . . 10 10 Impact Weapon 10 | . 1 14 11 11 Naked Turns . | . . . . . Heaviest Build 104 | 14 31 36 104 104 Greatest Support 40 | 32 32 40 40 40 Greatest Overweight (x) 32 | 3 . 1 2 32 Average Overweight (x) . | . . . 1 3 Largest Inventory Capacity 25 | 8 15 15 25 25 Average Capacity 20 | 7 10 15 23 25 Most Carried 25 | 6 15 15 25 25 Average Carried 19 | 4 9 14 21 24 Final Capacity 25 | 8 15 15 25 25 Final Carried 25 | 2 14 14 25 23 Class Distribution -------------------- 54% | Mutant 45% | Scavenger-Mutant Dominant Class ---------------- Mutant | -10/Materials Scavenger-Mutant | -10/Mines Mutant | -9/Materials Mutant | -9/Storage Resources | -11 -10 -10 -9 -9 ----------- Run | Yrd Mat Min Mat Sto Matter Collected 1162 | 244 132 159 336 291 Remotely . | . . . . . Salvage Created 3909 | . 645 524 1376 1364 Parts 195 | . 39 25 78 53 Haulers Intercepted 8 | . 2 . 5 1 Recyclers Shooed 3 | . 1 1 . 1 Parts Field Recycled . | . . . . . Retrieved Matter . | . . . . . Parts Self-Destructed . | . . . . . Prevented . | . . . . . Kills | -11 -10 -10 -9 -9 ------- Run | Yrd Mat Min Mat Sto Combat Hostiles Destroyed 70 | . 7 13 24 26 Melee 24 | . . 3 11 10 Guns 13 | . 7 6 . . Cannons 13 | . . . 6 7 Classes Destroyed 12 | . 7 2 3 . Worker 6 | . 1 . 5 . Builder 9 | . 1 4 3 1 Tunneler 6 | . 1 3 2 . Hauler 8 | . 2 . 5 1 Recycler 7 | . 1 2 . 4 Operator 3 | . . . 2 1 Watcher 9 | . 3 . 4 2 Swarmer 16 | . . 9 4 3 Grunt 34 | . 7 2 10 15 Brawler 1 | . . . 1 . Duelist 2 | . . . 1 1 Sentry 17 | . . 2 8 7 Best Kill Streak 7 | . 6 7 6 4 Combat Bots Only 4 | . 3 3 4 4 Max Kills in Single Turn 2 | . 2 1 1 1 Gunslinging . | . . . . . Exploded . | . . . . . Melee 1 | . . 1 1 1 Uniques/NPCs Destroyed . | . . . . . Combat | -11 -10 -10 -9 -9 -------- Run | Yrd Mat Min Mat Sto Hostile Shots Fired 446 | . 22 56 146 222 Missed 112 | . 4 9 43 56 Damage Taken 3078 | . 193 342 976 1567 Core 520 | . 36 78 89 317 Absorbed by Shields . | . . . . . Redirected to Shielding 281 | . . . 115 166 Ignored by Resistances 947 | . 60 108 301 478 Regen/Repaired (Parts) 88 | . 36 . . 52 Core Remaining (%) 77 | 100 . 54 . . Volleys Fired 138 | . 31 19 48 40 Largest 2 | . 2 1 1 1 Hottest 105 | . 105 65 68 68 Shots Fired 174 | . 62 20 50 42 Gun 82 | . 62 20 . . Cannon 92 | . . . 50 42 Launcher . | . . . . . Special . | . . . . . Kinetic . | . . . . . Thermal 128 | . 16 20 50 42 Explosive . | . . . . . Electromagnetic 46 | . 46 . . . Robot Hit Streak 23 | . 23 13 10 8 Robot Miss Streak 2 | . 1 2 1 2 Penetration Max . | . . . . . Secondary Targets . | . . . . . Shots Hit Robots 270 | . 48 31 103 88 Core Hits 82 | . 25 11 25 21 Critical Kills 6 | . . 1 3 2 Critical Parts Destroyed 33 | . . 6 17 10 Critical Strikes 41 | . . 9 20 12 Burn 2 | . . 2 . . Meltdown 1 | . . . 1 . Smash 38 | . . 7 19 12 Melee Attacks 136 | . . 17 61 58 Impact 136 | . . 17 61 58 Slashing . | . . . . . Piercing . | . . . . . Sneak Attacks 30 | . . 8 13 9 Combat Hostiles 1 | . . . . 1 Follow-up Attacks . | . . . . . Damage Inflicted 8781 | . 837 1343 3399 3202 Guns 948 | . 713 235 . . Cannons 1530 | . . . 774 756 Explosions 119 | . 119 . . . Melee 6179 | . . 1108 2625 2446 Ramming 5 | . 5 . . . Kinetic . | . . . . . Thermal 2047 | . 282 235 774 756 Explosive . | . . . . . Electromagnetic 550 | . 550 . . . Impact 6179 | . . 1108 2625 2446 Slashing . | . . . . . Piercing . | . . . . . Highest Corruption 12 | . . 4 12 12 Average Corruption 6 | . . 4 3 12 Corruption Purged . | . . . . . Corruption Blocked . | . . . . . Effects 149 | . . 33 43 73 Message Errors 37 | . . 7 13 17 Matter Fused 32 | . . 10 7 15 Heat Flow Errors 15 | . . 3 4 8 Energy Discharges 17 | . . 1 5 11 Parts Rejected 2 | . . . . 2 Parts Fused 4 | . . 1 1 2 Data Loss (minor) 22 | . . 7 7 8 Data Loss (major) 6 | . . 3 1 2 Misfires 6 | . . 1 2 3 Alerts 7 | . . . 3 4 Weapon Failures 1 | . . . . 1 Overload Shots . | . . . . . Overflow Damage 2591 | . 5 724 1161 701 Projectiles 1 | . . . . 1 Explosions 5 | . 5 . . . Melee 2585 | . . 724 1161 700 Knockbacks 14 | . . 3 6 5 Impact 14 | . . 3 6 5 Kinetic . | . . . . . Secondary . | . . . . . Self-Inflicted Damage 21 | . 21 . . . Shots 1 | . 1 . . . Rammed 1 | . 1 . . . Targets Rammed 1 | . 1 . . . Kicked . | . . . . . Crushed . | . . . . . Highest Temperature 294 | . 231 229 294 273 Average Temperature 91 | . 75 69 105 99 Received Heat Transfer 1515 | . 126 87 573 729 Effects 2 | . . . . 2 Energy Bleed 2 | . . . . 2 Siege Activations . | . . . . . Robots Corrupted . | . . . . . Combat Hostiles . | . . . . . Parts Fried 60 | . 1 17 21 21 Impact Corruptions 90 | . . 27 40 23 Robots Melted 1 | . . . 1 . Combat Hostiles 1 | . . . 1 . Parts Melted 5 | . . 1 2 2 Heat Transferred 4159 | . 607 703 1554 1295 Parts Sabotaged . | . . . . . Parts Stolen . | . . . . . Parts Stripped . | . . . . . Power Chain Reactions 3 | . 3 . . . Alert | -11 -10 -10 -9 -9 ------- Run | Yrd Mat Min Mat Sto Peak Influence 398 | . 205 207 398 324 Initial 2 | . . 2 1 . Average 78 | . 63 73 92 69 Maximum Alert Level 1 | . 1 1 1 1 Low Security (%) 88 | 100 93 91 81 95 Level 1 11 | . 6 8 18 4 Level 2 . | . . . . . Level 3 . | . . . . . Level 4 . | . . . . . Level 5 . | . . . . . High Security . | . . . . . Max Security . | . . . . . Squads Dispatched 12 | . 2 . 2 8 Investigation 5 | . 2 . . 3 Extermination . | . . . . . Reinforcement 4 | . . . 2 2 Assault . | . . . . . Garrison 3 | . . . . 3 Intercept . | . . . . . Searches Triggered . | . . . . . Construction Impeded . | . . . . . Haulers Reinforced . | . . . . . Active Scanning Responses . | . . . . . Cargo Convoy Interrupts . | . . . . . Stealth | -11 -10 -10 -9 -9 --------- Run | Yrd Mat Min Mat Sto Distress Signals 4 | . . . 3 1 Communications Jammed . | . . . . . Distress Signals . | . . . . . Times Spotted 94 | . 12 13 33 36 Peak Tracking Total 5 | . 3 3 5 5 Tactical Retreats 4 | . 1 . 2 1 Traps | -11 -10 -10 -9 -9 ------- Run | Yrd Mat Min Mat Sto Traps Triggered 7 | . 3 . . 4 Indirectly . | . . . . . Trap Hack Attempts . | . . . . . Triggered . | . . . . . Disarmed . | . . . . . Reprogrammed . | . . . . . Reused . | . . . . . Traps Extracted . | . . . . . Installed . | . . . . . Triggered . | . . . . . Machines | -11 -10 -10 -9 -9 ---------- Run | Yrd Mat Min Mat Sto Machines Disabled 1 | . . . . 1 Max in Single Turn 1 | . . . . 1 Machines Repaired . | . . . . . Machines Dismantled . | . . . . . Machines Sabotaged . | . . . . . Overloaded Fab Kills . | . . . . . Hacking | -11 -10 -10 -9 -9 --------- Run | Yrd Mat Min Mat Sto Machines Accessed 21 | . 9 1 5 6 Terminals 14 | . 7 . 3 4 Fabricators . | . . . . . Repair Stations 2 | . 1 . . 1 Recycling Units 2 | . 1 . . 1 Scanalyzers 2 | . . . 2 . Garrison Access . | . . . . . Total Hacks 77 | . 35 1 23 18 Successful 56 | . 24 1 19 12 Failed 21 | . 11 . 4 6 Catastrophic 3 | . 1 . . 2 Database Lockouts . | . . . . . Manual 42 | . 24 . 9 9 Terminals 49 | . 27 . 8 14 Fabricators . | . . . . . Repair Stations 10 | . 7 . . 3 Recycling Units 2 | . 1 . . 1 Scanalyzers 15 | . . . 15 . Garrison Access . | . . . . . Terminal Hacks 17 | . 10 1 1 5 Part Schematic 1 | . . . . 1 Robot Analysis 7 | . 5 . 1 1 Prototype ID Bank 1 | . 1 . . . Open Door 1 | . . 1 . . Branch Access Points 2 | . 1 . . 1 Hauler Manifests 2 | . 1 . . 1 Registered Components 1 | . 1 . . . Zone Layout 2 | . 1 . . 1 Fabricator Hacks . | . . . . . Repair Station Hacks 8 | . 6 . . 2 Scan Component 4 | . 3 . . 1 Repair 4 | . 3 . . 1 Recycling Unit Hacks . | . . . . . Scanalyzer 14 | . . . 14 . Insert Component 8 | . . . 8 . Analyze 6 | . . . 6 . Garrison Access Hacks . | . . . . . Unauthorized Hacks 17 | . 8 . 4 5 Terminals 15 | . 7 . 4 4 Assimilate 2 | . . . 1 1 Botnet 13 | . 7 . 3 3 Fabricators . | . . . . . Repair Stations . | . . . . . Recycling Units 2 | . 1 . . 1 Tunnel 2 | . 1 . . 1 Scanalyzers . | . . . . . Garrison Access . | . . . . . Data Cores Recovered . | . . . . . Used . | . . . . . Hacking Detections 17 | . 7 . 5 5 Full Trace Events 2 | . . . . 2 Feedback Events . | . . . . . Feedback Blocked . | . . . . . Robot Schematics Acquired . | . . . . . Robots Built . | . . . . . Authchips . | . . . . . Time . | . . . . . Total Robot Build Rating . | . . . . . Part Schematics Acquired 6 | . . . 5 1 Parts Built . | . . . . . Authchips . | . . . . . Time . | . . . . . Total Part Build Rating . | . . . . . Parts Repaired 4 | . 3 . . 1 Time 131 | . 105 . . 26 Parts Recycled . | . . . . . Recycled Matter . | . . . . . Retrieved Matter . | . . . . . Retrieved Components . | . . . . . Parts Scanalyzed 5 | . . . 5 . Part Schematics Acquired 5 | . . . 5 . Parts Damaged . | . . . . . Bothacking | -11 -10 -10 -9 -9 ------------ Run | Yrd Mat Min Mat Sto Used RIF Installer . | . . . . . Robots Hacked . | . . . . . Non-combat . | . . . . . Combat . | . . . . . Robot Hacks Applied . | . . . . . Relay Couplers Released . | . . . . . Fabnet Peak Effective % . | . . . . . Robots Rewired . | . . . . . Allies Hacked . | . . . . . Hacks Repelled . | . . . . . Allies | -11 -10 -10 -9 -9 -------- Run | Yrd Mat Min Mat Sto Total Allies 3 | . . 2 . 1 Largest Group 2 | . . 2 2 1 Highest-Rated Group 42 | . . 42 42 10 Highest-Rated Ally 31 | . . 31 31 10 Total Orders . | . . . . . Ally Attacks 8 | . . . 8 . Total Damage 144 | . . . 144 . Kills 1 | . . . 1 . Allies Corrupted . | . . . . . Allies Melted . | . . . . . Intel | -11 -10 -10 -9 -9 ------- Run | Yrd Mat Min Mat Sto Robot Analysis Total 4 | . 4 . . . Derelict Logs Recovered 1 | . . 1 . . Drone Launches . | . . . . . Drone Recoveries . | . . . . . Exploration | -11 -10 -10 -9 -9 ------------- Run | Yrd Mat Min Mat Sto Turns Passed 7169 | 61 928 1326 2992 1862 Spaces Moved 2829 | 46 686 836 892 369 Core 44 | 35 . . . 9 Treads 1708 | . . 603 892 213 Legs 122 | . . . . 122 Wheels 955 | 11 686 233 . 25 Hover . | . . . . . Flight . | . . . . . Fastest Speed 50 | 50 100 100 160 130 Average Speed 204 | 103 100 143 290 342 Slowest Speed 1650 | 200 100 240 320 1650 Overloaded Moves . | . . . . . Propulsion Burnouts . | . . . . . Robots Hopped . | . . . . . Cave-ins Triggered . | . . . . . Exploration Rate (%) 63 | 3 93 99 60 61 Regions Visited 4 Branch Regions 2 Pre-discovered Areas 3 | . 1 1 . 1 Known Exits Taken 1 | . 1 . . . Unknown Exits Taken 3 | 1 . 1 1 . Scrap Searched 1 | . . 1 . . Spaces Dug . | . . . . . Terrain Destroyed 8 | . 8 . . . Melee . | . . . . . Projectile . | . . . . . AOE 8 | . 8 . . . Terrain Rammed . | . . . . . Walls Destroyed . | . . . . . Machines Disabled . | . . . . . Actions | -11 -10 -10 -9 -9 --------- Run | Yrd Mat Min Mat Sto Total 3780 | 58 866 909 1130 817 Wait 489 | . 110 8 61 310 Move 2825 | 45 685 835 891 369 Hop . | . . . . . Pick Up 61 | 6 19 9 20 7 Fast Attach 24 | 2 6 7 2 7 Attach 20 | 4 2 1 4 9 Detach . | . . . . . Swap 32 | 1 3 2 22 4 Drop 46 | . 9 11 21 5 Fire 138 | . 31 19 48 40 Melee 136 | . . 17 61 58 Ram 1 | . 1 . . . Kick . | . . . . . Crush . | . . . . . Escape Stasis 6 | . . . . 6 Rewire . | . . . . . Trap . | . . . . . Miscellaneous 2 | . . . . 2 Route ------- -11/Scrapyard -10/Materials (discovered 4 exits: *Mat x3 / *Min) -10/Mines (discovered 2 exits: *Mat x2) -9/Materials (discovered 3 exits: [*Mat] / [*Min] / *Sto) -9/Storage (discovered 1 exit: Rec) History --------- Turn | Location | Event 9 | -11/Scrapyard | Discovered new exit (range 15) 62 | -11/Scrapyard | Entered Materials 193 | -10/Materials | Discovered new exit (range 16) 193 | -10/Materials | Identified exit to Mines 316 | -10/Materials | Build established: Mutant 482 | -10/Materials | Repaired Corrupted Lgt. Nuclear Core 509 | -10/Materials | Repaired Com. Wheel 537 | -10/Materials | Repaired Com. Wheel 662 | -10/Materials | Discovered new exit (range 16) 891 | -10/Materials | Discovered new exit (range 9) 990 | -10/Materials | Entered Mines 1063 | -10/Mines | Learned location of Storage (-9) 1101 | -10/Mines | Met a Derelict bent on vengeance 1147 | -10/Mines | Discovered new exit (range 15) 1309 | -10/Mines | Lost 3 parts (1n1u1w) 1592 | -10/Mines | Build established: Scavenger-Mutant 1824 | -10/Mines | Found the Drone Emporium 1834 | -10/Mines | Found Prototype Device 1943 | -10/Mines | Discovered new exit (range 9) 2316 | -10/Mines | Entered Materials 2316 | -9/Materials | Accompanied by 2 allies 2316 | -9/Materials | Evolved 2 slots: Utility x2 2321 | -9/Materials | Led the pair of lost Derelicts to an unsafe place 3352 | -9/Materials | Discovered new exit (range 5) 3823 | -9/Materials | Discovered new exit (range 14) 4150 | -9/Materials | Build established: Mutant 4323 | -9/Materials | Identified Thief Drone Bay 4642 | -9/Materials | System corruption reached 10% 4820 | -9/Materials | Discovered new exit (range 12) 5308 | -9/Materials | Entered Storage 5404 | -9/Storage | Repaired Lgt. Treads 6258 | -9/Storage | Core integrity fell below 50% 6331 | -9/Storage | Lost 3 parts (1p2u) 6593 | -9/Storage | Build established: Scavenger-Mutant 6862 | -9/Storage | Identified exit to Recycling 6936 | -9/Storage | Garrison activated, responded to threat 7046 | -9/Storage | Core integrity fell below 20% 7170 | -9/Storage | Destroyed by G-34 Mercenary with Small Laser Last Messages --------------- 07140_ Terminal unresponsive. 07146_ Connecting with Door Terminal... 07146_ ALERT: Suspicious activity at Terminal S010. Dispatching Investigation squad. 07149_ Dismantling Sealed Heavy Doors with Plasma Cutter. 07152_ System corrupted: Heat flow error (+200). 07152_ Dismantling Sealed Heavy Doors with Plasma Cutter. 07159_ G-34 Mercenary destroyed. 07164_ Y-45 Defender suffers critical hit (Smash). 07164_ Y-45 Defender destroyed. 07167_ Destroyed Heat Sink. 07167_ G-34 Mercenary system corrupted by crushing effect. 07167_ Ion Engine fried. 07167_ G-34 Mercenary destroyed. 07170_ ST,WIFLJWZ11TDTHDR F5A&HLC<4EOK G80A 07170_ Acquired 10 matter. Map ----- +----------------------------------------------------+ | ?????????????????????????????????????????? | | ?????????????????????????????????????????? | | ?????????????????????????????????????????? | | ?????????????????????????????????????????? | | ?????????????????????????????????????????? | | ?????????????????????????????????????????? | | ?????????????????????????????????????????? | | ?????????????????????????????????????????? | | ?????????????????????????????????????????? | | ?????????????????????????????????????????? | | ????????????????????? ??????????>???????? | | ???????????????????? ?????????????????? | | ???????????????????? ?????????????????? | | ????????????????????# #?????????????????? | | ????????????????????# #?????????????????? | | ????????????????????/ +?????????????????? | | ????????????????????# #?????????????????? | | ????????????????????# #?????????????????? | | ????????????????????# #?????????????????? | | ????????????????????# #?????????????????? | | ????????????????????# #?????????????????? | | #??????????????# #?????????????????? | | ???????????????????## ##????????????????? | | ??????????????###### o!=####?????????????? | | ??##########??# !==#g%"?????????????? | | ??# ?# T[/@["?????????????? | | ??# ?# ### =[%#*="?????????????? | | ??# # ####+####T#?????????????? | | ??# # + ####?????????????? | | ??# + # "" #????????????????? | | ??# # # "G #????????????????? | | ??# # # "" #????????????????? | | ??############# # #????????????????? | | ????# # %#[""" #????????????????? | | ????# """ """ #! #=""" #????????????????? | | ????# """ """ # /!""" #????????????????? | | #???# """ """ # #[* #???????????????? | | ##### % # # "" ##???????????????? | | == #########+## # """ #????????????????? | | = / %% # """ #????????????????? | | = ####### + #????????????????? | | #?#### a##############????????????????? | | #?# #?????????????????????????? | | #?# #?????????????????????????? | | #?# #?????????????????????????? | | +###?# """ """ #?????????????????????????? | | #???# """ """ #?????????????????????????? | | #???# """ """ #?????????????????????????? | | #???# % #?????????????????????????? | | %#?### #?????????????????????????? | +----------------------------------------------------+ Best States ------------- Heat Dissipation 28 Energy Generation 14 Energy Capacity 280 Matter Stores 300 Matter Capacity 450 Sight Range 16 Terrain Scan Density 10 Armor Coverage 300 Resistance: KI 20 Resistance: TH 20 Resistance: EX 20 Resistance: EM 20 Resistance: I 20 Resistance: S 20 Resistance: P 20 Propulsion Shielding 33 Weapon Shielding 66 Evasion (%) 50 Targeting Accuracy 5 Recoil Reduction 2 Offensive Hacking 10 Item Schematics ----------------- Lgt. Treads | -9/Materials | Scanalyzed Targeting Computer | -9/Materials | Scanalyzed Visual Processing Unit | -9/Materials | Scanalyzed Carbon-fiber Leg | -9/Materials | Scanalyzed Imp. Aluminum Leg | -9/Materials | Scanalyzed Lgt. EM Pulse Cannon | -9/Storage | Hacked Robot Schematics ------------------ None Fabricated ------------ Nothing Alien Tech Used ----------------- None Achievements -------------- None Challenges ------------ None Game ------ Seed StructuralSingularitySuite Manual? 0 Play Time 00:40:53 Cumulative 55.5 hours Start 2024.07.22 @ 07:29:07 End 2024.07.22 @ 08:09:29 Sessions 1 Manual Loads 0 Difficulty Adventurer Special Mode None Game No. 86 Rogue 0 Adventurer 86 Explorer 0 Win Type - Total 0 Types 0/0/0/0/0/0/0/0/0 Lore% 42 Gallery% 40 Achievement% 31 Wizard Run 0 Options --------- Layout 2 ASCII 0 Keyboard 0 Movement Mouse Keybinds 0 Fullscreen 2 Font 48/Smallcaps Map View 50x44 Zoom Use 0% Tactical HUD 1 Map Filters NONE Filters NONE Steam 1 RUN: 5ccc1c50-02c1-4aa0-bb42-53e2e23b49fb